fUSD/lending_fUSD_20251210
["ID","MTS","AMOUNT","RATE_DAILY","PERIOD"]
[398072789,1765357860994,-630.23,0.00014246,2]
[398072790,1765357861002,-450.97034937,0.00014246,2]
[398072791,1765357861011,-500.0,0.00014246,2]
[398072792,1765357861020,-646.24,0.00014246,2]
[398072793,1765357861030,-500.0,0.00014246,2]
[398072794,1765357861039,-691.23,0.00014246,2]
[398072795,1765357861048,-500.0,0.00014246,2]
[398072796,1765357861057,-707.22,0.00014246,2]
[398072797,1765357861066,-2500.52,0.00014246,2]
[398072798,1765357861075,-500.0,0.00014246,2]
[398072799,1765357861084,-500.0,0.00014246,2]
[398072800,1765357861093,-500.0,0.00014246,2]
[398072801,1765357861103,-500.0,0.00014246,2]
[398072802,1765357861113,-500.0,0.00014246,2]
[398072803,1765357861122,-500.0,0.00014246,2]
[398072804,1765357861131,-500.0,0.00014246,2]
[398072805,1765357861140,-500.0,0.00014246,2]
[398072806,1765357861149,-536.31,0.00014246,2]
[398072807,1765357861159,-910.21,0.00014246,2]
[398072808,1765357861168,-500.0,0.00014246,2]
[398072809,1765357861177,-646.26,0.00014246,2]
[398072810,1765357861186,-500.0,0.00014246,2]
[398072811,1765357861196,-500.0,0.00014246,2]
[398072812,1765357861205,-601.1,0.00014246,2]
[398072813,1765357861214,-500.0,0.00014246,2]
[398072814,1765357861224,-500.0,0.00014246,2]
[398072815,1765357861233,-500.0,0.00014246,2]
[398072816,1765357861243,-820.64,0.00014246,2]
[398072817,1765357861252,-719.49,0.00014246,2]
[398072818,1765357861261,-500.0,0.00014246,2]
[398072819,1765357861270,-1476.53,0.00014246,2]
[398072820,1765357861281,-500.0,0.00014246,2]
[398072821,1765357861291,-500.0,0.00014246,2]
[398072822,1765357861300,-568.5,0.00014246,2]
[398072823,1765357861310,-808.5,0.00014246,2]
[398072824,1765357861320,-500.0,0.00014246,2]
[398072825,1765357861329,-772.65,0.00014246,2]
[398072826,1765357861339,-592.87,0.00014246,2]
[398072827,1765357861348,-547.53,0.00014246,2]
[398072828,1765357861357,-500.0,0.00014246,2]
[398072829,1765357861366,-500.0,0.00014246,2]
[398072830,1765357861375,-500.0,0.00014246,2]
[398072831,1765357861385,-1281.36,0.00014246,2]
[398072832,1765357861394,-500.0,0.00014246,2]
[398072833,1765357861403,-500.0,0.00014246,2]
[398072834,1765357861412,-500.0,0.00014246,2]
[398072835,1765357861423,-899.5,0.00014246,2]
[398072836,1765357861433,-577.96227284,0.00014246,2]
[398072837,1765357861442,-500.0,0.00014246,2]
[398072838,1765357861452,-500.0,0.00014246,2]
[398072839,1765357861475,-703.09,0.00014246,2]
[398072840,1765357861485,-500.0,0.00014246,2]
[398072841,1765357861495,-500.0,0.00014246,2]
[398072842,1765357861504,-530.71,0.00014246,2]
[398072843,1765357861513,-682.07,0.00014246,2]
[398072844,1765357861522,-500.0,0.00014246,2]
[398072845,1765357861531,-500.0,0.00014246,2]
[398072846,1765357861543,-500.0,0.00014246,2]
[398072847,1765357861552,-500.0,0.00014246,2]
[398072848,1765357861561,-500.0,0.00014246,2]
[398072849,1765357861570,-500.0,0.00014246,2]
[398072850,1765357861580,-500.0,0.00014246,2]
[398072851,1765357861589,-500.0,0.00014246,2]
[398072852,1765357861598,-500.0,0.00014246,2]
[398072853,1765357861607,-500.0,0.00014246,2]
[398072854,1765357861616,-549.74,0.00014246,2]
[398072855,1765357861625,-500.0,0.00014246,2]
[398072856,1765357861634,-500.0,0.00014246,2]
[398072857,1765357861643,-952.91,0.00014246,2]
[398072858,1765357861652,-510.02,0.00014246,2]
[398072859,1765357861662,-500.0,0.00014246,2]
[398072860,1765357861671,-1498.88,0.00014246,2]
[398072861,1765357861680,-262.86320074,0.00014246,2]
[398072862,1765357861689,-500.0,0.00014246,2]
[398072863,1765357861699,-500.0,0.00014246,2]
[398072864,1765357861708,-2964.94,0.00014246,2]
[398072865,1765357861718,-542.55,0.00014246,2]
[398072866,1765357861727,-580.96,0.00014246,2]
[398072867,1765357861736,-500.0,0.00014246,2]
[398072868,1765357861746,-572.62,0.00014246,2]
[398072869,1765357861755,-723.63,0.00014246,2]
[398072870,1765357861764,-1210.84,0.00014246,2]
[398072871,1765357861773,-500.0,0.00014246,2]
[398072872,1765357861782,-500.0,0.00014246,2]
[398072873,1765357861792,-500.0,0.00014246,2]
[398072874,1765357861801,-589.95,0.00014246,2]
[398072875,1765357861810,-500.0,0.00014246,2]
[398072876,1765357861819,-500.0,0.00014246,2]
[398072877,1765357861828,-500.0,0.00014246,2]
[398072878,1765357861837,-778.18,0.00014246,2]
[398072879,1765357861846,-500.0,0.00014246,2]
[398072880,1765357861855,-734.52,0.00014246,2]
[398072881,1765357861867,-440.51629971,0.00014246,2]
[398072882,1765357861880,-500.0,0.00014246,2]
[398072883,1765357861890,-500.0,0.00014246,2]
[398072884,1765357861900,-500.0,0.00014246,2]
[398072885,1765357861909,-500.0,0.00014246,2]
[398072886,1765357861918,-541.9,0.00014246,2]
[398072887,1765357861929,-500.0,0.00014246,2]
[398072888,1765357861938,-500.0,0.00014246,2]
[398072889,1765357861947,-500.0,0.00014246,2]
[398072890,1765357861957,-700.52,0.00014246,2]
[398072891,1765357861966,-500.0,0.00014246,2]
[398072892,1765357861976,-936.7,0.00014246,2]
[398072893,1765357861985,-500.0,0.00014246,2]
[398072894,1765357861995,-500.0,0.00014246,2]
[398072895,1765357862004,-500.0,0.00014246,2]
[398072896,1765357862014,-500.0,0.00014246,2]
[398072897,1765357862023,-656.24,0.00014246,2]
[398072898,1765357862033,-514.09,0.00014246,2]
[398072899,1765357862042,-543.68,0.00014246,2]
[398072900,1765357862051,-500.0,0.00014246,2]
[398072901,1765357862061,-1905.21,0.00014246,2]
[398072902,1765357862070,-500.0,0.00014246,2]
[398072903,1765357862079,-689.88,0.00014246,2]
[398072904,1765357862089,-500.0,0.00014246,2]
[398072905,1765357862099,-3053.55,0.00014246,2]
[398072906,1765357862108,-569.7,0.00014246,2]
[398072907,1765357862117,-500.0,0.00014246,2]
[398072908,1765357862127,-734.14,0.00014246,2]
[398072909,1765357862136,-500.0,0.00014246,2]
[398072910,1765357862144,-553.03,0.00014246,2]
[398072911,1765357862154,-500.0,0.00014246,2]
[398072912,1765357862163,-500.0,0.00014246,2]
[398072913,1765357862172,-500.0,0.00014246,2]
[398072914,1765357862181,-500.0,0.00014246,2]
[398072915,1765357862190,-500.0,0.00014246,2]
[398072916,1765357862200,-500.0,0.00014246,2]
[398072917,1765357862209,-500.0,0.00014246,2]
[398072918,1765357862220,-500.0,0.00014246,2]
[398072919,1765357862230,-569.25,0.00014246,2]
[398072920,1765357862240,-500.0,0.00014246,2]
[398072921,1765357862249,-962.64,0.00014246,2]
[398072922,1765357862259,-500.0,0.00014246,2]
[398072923,1765357862277,-629.12,0.00014246,2]
[398072924,1765357862291,-500.0,0.00014246,2]
[398072925,1765357862301,-668.83,0.00014246,2]
[398072926,1765357862311,-618.47,0.00014246,2]
[398072927,1765357862322,-500.0,0.00014246,2]
[398072928,1765357862332,-734.74,0.00014246,2]
[398072929,1765357862343,-195.87302265,0.00014246,2]
[398072930,1765357862353,-500.0,0.00014246,2]
[398072931,1765357862364,-500.0,0.00014246,2]
[398072932,1765357862375,-500.0,0.00014246,2]
[398072933,1765357862385,-623.42,0.00014246,2]
[398072934,1765357862396,-500.0,0.00014246,2]
[398072935,1765357862406,-500.0,0.00014246,2]
[398072936,1765357862419,-500.0,0.00014246,2]
[398072937,1765357862433,-500.0,0.00014246,2]
[398072938,1765357862443,-500.0,0.00014246,2]
[398072939,1765357862453,-500.0,0.00014246,2]
[398072940,1765357862463,-500.0,0.00014246,2]
[398072941,1765357862473,-406.38705565,0.00014246,2]
[398072942,1765357862483,-341.18736193,0.00014246,2]
[398072943,1765357862494,-500.0,0.00014246,2]
[398072944,1765357862506,-500.0,0.00014246,2]
[398072945,1765357862516,-500.0,0.00014246,2]
[398072946,1765357862526,-733.65,0.00014246,2]
[398072947,1765357862536,-500.0,0.00014246,2]
[398072948,1765357862551,-500.0,0.00014246,2]
[398072949,1765357862571,-500.0,0.00014246,2]
[398072950,1765357862585,-500.0,0.00014246,2]
[398072951,1765357862595,-690.44,0.00014246,2]
[398072952,1765357862604,-500.0,0.00014246,2]
[398072953,1765357862614,-500.0,0.00014246,2]
[398072954,1765357862624,-166.66,0.00014247,2]
[398072955,1765357862634,-500.0,0.00014253,2]
[398072956,1765357862643,-3698.88148891,0.00014265,2]
[398072957,1765357862652,-612.436,0.0001428,2]
[398072958,1765357862662,-3460.973,0.0001428,2]
[398072959,1765357862672,-615.561,0.0001428,2]
[398072960,1765357862683,-1262.739,0.0001428,2]
[398072961,1765357862695,-17893.45835745,0.0001429,7]
[398072962,1765357862705,-500.0,0.00014299,2]
[398072963,1765357862714,-340.91248771,0.000143,2]
[398072964,1765357862724,-572.93207568,0.000143,2]
[398072965,1765357862733,-463.60165039,0.000143,2]
[398072966,1765357862743,-500.0,0.000143,2]
[398072967,1765357862752,-357.0328533,0.000143,2]
[398072968,1765357862761,-500.0,0.000143,2]
[398072969,1765357862770,-500.0,0.000143,2]
[398072970,1765357862780,-500.0,0.000143,2]
[398072971,1765357862790,-500.0,0.000143,2]
[398072972,1765357862799,-801.66,0.000143,2]
[398072973,1765357862809,-500.0,0.000143,2]
[398072974,1765357862818,-548.29,0.000143,2]
[398072975,1765357862827,-500.0,0.000143,2]
[398072976,1765357862836,-500.0,0.000143,2]
[398072977,1765357862845,-500.0,0.000143,2]
[398072978,1765357862855,-500.0,0.000143,2]
[398072979,1765357862864,-268.11212175,0.000143,2]
[398072980,1765357862873,-500.0,0.000143,2]
[398072981,1765357862882,-500.0,0.000143,2]
[398072982,1765357862892,-500.0,0.000143,2]
[398072983,1765357862901,-589.75,0.000143,2]
[398072984,1765357862910,-500.0,0.000143,2]
[398072985,1765357862919,-500.0,0.000143,2]
[398072986,1765357862928,-500.0,0.000143,2]
[398072987,1765357862938,-500.0,0.000143,2]
[398072988,1765357862947,-500.0,0.000143,2]
[398072989,1765357862956,-500.0,0.000143,2]
[398072990,1765357862965,-500.0,0.000143,2]
[398072991,1765357862975,-680.32,0.000143,2]
[398072992,1765357862985,-500.0,0.000143,2]
[398072993,1765357862994,-626.83,0.000143,2]
[398072994,1765357863004,-500.0,0.000143,2]
[398072995,1765357863013,-757.56,0.000143,2]
[398072996,1765357863022,-500.0,0.000143,2]
[398072997,1765357863112,-500.0,0.000143,2]
[398072998,1765357863122,-500.0,0.000143,2]
[398072999,1765357863131,-673.38,0.000143,2]
[398073000,1765357863140,-500.0,0.000143,2]
[398073001,1765357863149,-500.0,0.000143,2]
[398073002,1765357863158,-500.0,0.000143,2]
[398073003,1765357863167,-500.0,0.000143,2]
[398073004,1765357863176,-354.58628985,0.000143,2]
[398073005,1765357863185,-800.49,0.000143,2]
[398073006,1765357863194,-327.36114167,0.000143,2]
[398073007,1765357863203,-500.0,0.000143,2]
[398073008,1765357863213,-500.0,0.000143,2]
[398073009,1765357863224,-500.0,0.000143,2]
[398073010,1765357863234,-556.96,0.000143,2]
[398073011,1765357863243,-500.0,0.000143,2]
[398073012,1765357863254,-500.0,0.000143,2]
[398073013,1765357863263,-500.0,0.000143,2]
[398073014,1765357863272,-500.0,0.000143,2]
[398073015,1765357863281,-500.0,0.000143,2]
[398073016,1765357863291,-500.0,0.000143,2]
[398073017,1765357863301,-500.0,0.000143,2]
[398073018,1765357863310,-500.0,0.000143,2]
[398073019,1765357863319,-500.0,0.000143,2]
[398073020,1765357863329,-500.0,0.000143,2]
[398073021,1765357863338,-500.0,0.000143,2]
[398073022,1765357863348,-500.0,0.000143,2]
[398073023,1765357863358,-500.0,0.000143,2]
[398073024,1765357863367,-500.0,0.000143,2]
[398073025,1765357863376,-500.0,0.000143,2]
[398073026,1765357863385,-500.0,0.000143,2]
[398073027,1765357863395,-500.0,0.000143,2]
[398073028,1765357863404,-500.0,0.000143,2]
[398073029,1765357863413,-1852.56,0.000143,2]
[398073030,1765357863426,-500.0,0.000143,2]
[398073031,1765357863435,-500.0,0.000143,2]
[398073032,1765357863444,-1167.21,0.000143,2]
[398073033,1765357863453,-500.0,0.000143,2]
[398073034,1765357863462,-501.3,0.000143,2]
[398073035,1765357863471,-500.0,0.000143,2]
[398073036,1765357863481,-500.0,0.000143,2]
[398073037,1765357863490,-500.0,0.000143,2]
[398073038,1765357863500,-500.0,0.000143,2]
[398073039,1765357863510,-491.85051045,0.000143,2]
[398073040,1765357863519,-664.07,0.000143,2]
[398073041,1765357863529,-500.0,0.000143,2]
[398073042,1765357863538,-768.63,0.000143,2]
[398073043,1765357863549,-500.0,0.000143,2]
[398073044,1765357863558,-500.0,0.000143,2]
[398073045,1765357863568,-530.27,0.000143,2]
[398073046,1765357863577,-511.21311424,0.000143,2]
[398073047,1765357863587,-500.0,0.000143,2]
[398073048,1765357863596,-818.77,0.000143,2]
[398073049,1765357863605,-500.0,0.000143,2]
[398073050,1765357863615,-500.0,0.000143,2]
[398073051,1765357863624,-500.0,0.000143,2]
[398073052,1765357863633,-500.0,0.000143,2]
[398073053,1765357863643,-500.0,0.000143,2]
[398073054,1765357863652,-516.02,0.000143,2]
[398073055,1765357863661,-500.0,0.000143,2]
[398073056,1765357863670,-500.0,0.000143,2]
[398073057,1765357863680,-500.0,0.000143,2]
[398073058,1765357863689,-538.18,0.000143,2]
[398073059,1765357863698,-595.84,0.000143,2]
[398073060,1765357863707,-500.0,0.000143,2]
[398073061,1765357863716,-500.0,0.000143,2]
[398073062,1765357863725,-500.0,0.000143,2]
[398073063,1765357863734,-500.0,0.000143,2]
[398073064,1765357863743,-500.0,0.000143,2]
[398073065,1765357863752,-500.0,0.000143,2]
[398073066,1765357863761,-500.0,0.000143,2]
[398073067,1765357863770,-500.0,0.000143,2]
[398073068,1765357863779,-500.0,0.000143,2]
[398073069,1765357863788,-500.0,0.000143,2]
[398073070,1765357863797,-500.0,0.000143,2]
[398073071,1765357863806,-566.09618415,0.000143,2]
[398073072,1765357863816,-166.6,0.0001431,2]
[398073073,1765357863825,-500.0,0.00014325,2]
[398073074,1765357863834,-500.0,0.00014325,2]
[398073075,1765357863843,-346.82807717,0.00014331,2]
[398073076,1765357863852,-1301.57,0.00014364,2]
[398073077,1765357863861,-500.0,0.00014382,2]
[398073078,1765357863870,-250.0,0.00014383,2]
[398073079,1765357863879,-166.66,0.00014384,2]
[398073080,1765357863889,-500.0,0.0001439,2]
[398073081,1765357863898,-1000.0,0.00014404,2]
[398073082,1765357863908,-222.8521859,0.0001442,2]
[398073083,1765357863917,-4585.63044618,0.00014425,2]
[398073084,1765357863926,-9808.19100306,0.00014425,2]
[398073085,1765357863935,-168.55,0.00014428,2]
[398073086,1765357863944,-2000.0,0.00014432,2]
[398073087,1765357863953,-176.0,0.00014476,2]
[398073088,1765357863962,-37748.18621295,0.000145,2]
[398073089,1765357863970,-2663.21860369,0.000145,2]
[398073090,1765357863980,-300.0,0.00014519,2]
[398073091,1765357863989,-500.0,0.00014519,2]
[398073092,1765357863998,-500.0,0.0001452,2]
[398073093,1765357864007,-500.0,0.0001452,2]
[398073094,1765357864016,-500.0,0.0001452,2]
[398073095,1765357864025,-500.0,0.0001452,2]
[398073096,1765357864035,-500.0,0.0001452,2]
[398073097,1765357864044,-504.14815025,0.0001452,2]
[398073098,1765357864053,-500.0,0.0001452,2]
[398073099,1765357864062,-742.43,0.0001452,2]
[398073100,1765357864072,-1010.84,0.0001452,2]
[398073101,1765357864080,-500.0,0.0001452,2]
[398073102,1765357864090,-500.0,0.0001452,2]
[398073103,1765357864099,-500.0,0.0001452,2]
[398073104,1765357864107,-500.0,0.0001452,2]
[398073105,1765357864116,-500.0,0.0001452,2]
[398073106,1765357864125,-849.82,0.0001452,2]
[398073107,1765357864134,-500.0,0.0001452,2]
[398073108,1765357864143,-641.36,0.0001452,2]
[398073109,1765357864152,-500.0,0.0001452,2]
[398073110,1765357864163,-804.78,0.0001452,2]
[398073111,1765357864178,-500.0,0.0001452,2]
[398073112,1765357864187,-500.0,0.0001452,2]
[398073113,1765357864195,-500.0,0.0001452,2]
[398073114,1765357864204,-500.0,0.0001452,2]
[398073115,1765357864213,-500.0,0.0001452,2]
[398073116,1765357864223,-500.0,0.0001452,2]
[398073117,1765357864232,-500.0,0.0001452,2]
[398073118,1765357864243,-500.0,0.0001452,2]
[398073119,1765357864252,-627.91,0.0001452,2]
[398073120,1765357864262,-471.30086259,0.0001452,2]
[398073121,1765357864272,-500.0,0.0001452,2]
[398073122,1765357864282,-500.0,0.0001452,2]
[398073123,1765357864291,-500.0,0.0001452,2]
[398073124,1765357864301,-500.0,0.0001452,2]
[398073125,1765357864311,-500.0,0.0001452,2]
[398073126,1765357864320,-500.0,0.0001452,2]
[398073127,1765357864330,-500.0,0.0001452,2]
[398073128,1765357864340,-580.49,0.0001452,2]
[398073129,1765357864349,-684.03,0.0001452,2]
[398073130,1765357864359,-669.46,0.0001452,2]
[398073131,1765357864368,-533.51,0.0001452,2]
[398073132,1765357864377,-500.0,0.0001452,2]
[398073133,1765357864387,-746.33,0.0001452,2]
[398073134,1765357864396,-500.0,0.0001452,2]
[398073135,1765357864405,-500.0,0.0001452,2]
[398073136,1765357864414,-500.0,0.0001452,2]
[398073137,1765357864429,-500.0,0.0001452,2]
[398073138,1765357864438,-542.46,0.0001452,2]
[398073139,1765357864447,-500.0,0.0001452,2]
[398073140,1765357864456,-500.0,0.0001452,2]
[398073141,1765357864467,-500.0,0.0001452,2]
[398073142,1765357864477,-500.0,0.0001452,2]
[398073143,1765357864486,-190.39093455,0.0001452,2]
[398073144,1765357864497,-196.33089546,0.0001452,2]
[398073145,1765357864508,-500.0,0.0001452,2]
[398073146,1765357864517,-500.0,0.0001452,2]
[398073147,1765357864527,-500.0,0.0001452,2]
[398073148,1765357864536,-500.0,0.0001452,2]
[398073149,1765357864545,-500.0,0.0001452,2]
[398073150,1765357864554,-273.78937159,0.0001452,2]
[398073151,1765357864563,-500.0,0.0001452,2]
[398073152,1765357864572,-500.0,0.0001452,2]
[398073153,1765357864582,-500.0,0.0001452,2]
[398073154,1765357864591,-500.0,0.0001452,2]
[398073155,1765357864600,-500.0,0.0001452,2]
[398073156,1765357864609,-500.0,0.0001452,2]
[398073157,1765357864619,-500.0,0.0001452,2]
[398073158,1765357864628,-718.55,0.0001452,2]
[398073159,1765357864637,-500.0,0.0001452,2]
[398073160,1765357864647,-500.0,0.0001452,2]
[398073161,1765357864657,-500.0,0.0001452,2]
[398073162,1765357864667,-604.06,0.0001452,2]
[398073163,1765357864676,-500.0,0.0001452,2]
[398073164,1765357864686,-500.0,0.0001452,2]
[398073165,1765357864695,-501.76,0.0001452,2]
[398073166,1765357864704,-404.65101544,0.0001452,2]
[398073167,1765357864713,-500.0,0.0001452,2]
[398073168,1765357864723,-500.0,0.0001452,2]
[398073169,1765357864732,-500.0,0.0001452,2]
[398073170,1765357864742,-697.8,0.0001452,2]
[398073171,1765357864751,-500.0,0.0001452,2]
[398073172,1765357864760,-573.86,0.0001452,2]
[398073173,1765357864770,-500.0,0.0001452,2]
[398073174,1765357864779,-500.0,0.0001452,2]
[398073175,1765357864788,-767.15,0.0001452,2]
[398073176,1765357864797,-683.07,0.0001452,2]
[398073177,1765357864806,-500.0,0.0001452,2]
[398073178,1765357864815,-500.0,0.0001452,2]
[398073179,1765357864825,-500.0,0.0001452,2]
[398073180,1765357864834,-500.0,0.0001452,2]
[398073181,1765357864843,-1239.48,0.0001452,2]
[398073182,1765357864852,-772.48,0.0001452,2]
[398073183,1765357864861,-500.0,0.0001452,2]
[398073184,1765357864870,-500.0,0.0001452,2]
[398073185,1765357864878,-500.0,0.0001452,2]
[398073186,1765357864887,-500.0,0.0001452,2]
[398073187,1765357864897,-500.0,0.0001452,2]
[398073188,1765357864906,-500.0,0.0001452,2]
[398073189,1765357864915,-865.23,0.0001452,2]
[398073190,1765357864925,-500.0,0.0001452,2]
[398073191,1765357864933,-500.0,0.0001452,2]
[398073192,1765357864943,-500.0,0.0001452,2]
[398073193,1765357864954,-500.0,0.0001452,2]
[398073194,1765357864963,-724.59,0.0001452,2]
[398073195,1765357864972,-500.0,0.0001452,2]
[398073196,1765357864981,-509.68,0.0001452,2]
[398073197,1765357864990,-500.0,0.0001452,2]
[398073198,1765357864999,-702.19,0.0001452,2]
[398073199,1765357865009,-500.0,0.0001452,2]
[398073200,1765357865018,-546.23,0.0001452,2]
[398073201,1765357865028,-500.0,0.0001452,2]
[398073202,1765357865037,-605.66,0.0001452,2]
[398073203,1765357865046,-706.08,0.0001452,2]
[398073204,1765357865056,-500.0,0.0001452,2]
[398073205,1765357865065,-500.0,0.0001452,2]
[398073206,1765357865074,-500.0,0.0001452,2]
[398073207,1765357865083,-500.0,0.0001452,2]
[398073208,1765357865092,-500.0,0.0001452,2]
[398073209,1765357865101,-500.0,0.0001452,2]
[398073210,1765357865110,-500.0,0.0001452,2]
[398073211,1765357865119,-1174.03,0.0001452,2]
[398073212,1765357865129,-500.0,0.0001452,2]
[398073213,1765357865138,-557.43,0.0001452,2]
[398073214,1765357865147,-500.0,0.0001452,2]
[398073215,1765357865156,-500.0,0.0001452,2]
[398073216,1765357865165,-500.0,0.0001452,2]
[398073217,1765357865175,-823.7,0.0001452,2]
[398073218,1765357865184,-500.0,0.0001452,2]
[398073219,1765357865194,-500.0,0.0001452,2]
[398073220,1765357865203,-500.0,0.0001452,2]
[398073221,1765357865212,-555.68,0.0001452,2]
[398073222,1765357865223,-500.0,0.0001452,2]
[398073223,1765357865233,-514.77,0.0001452,2]
[398073224,1765357865241,-500.0,0.0001452,2]
[398073225,1765357865250,-901.29,0.0001452,2]
[398073226,1765357865260,-500.0,0.0001452,2]
[398073227,1765357865270,-500.0,0.0001452,2]
[398073228,1765357865279,-615.28,0.0001452,2]
[398073229,1765357865288,-500.0,0.0001452,2]
[398073230,1765357865298,-500.0,0.0001452,2]
[398073231,1765357865311,-500.0,0.0001452,2]
[398073232,1765357865320,-500.0,0.0001452,2]
[398073233,1765357865330,-992.07,0.0001452,2]
[398073234,1765357865340,-534.13,0.0001452,2]
[398073235,1765357865349,-500.0,0.0001452,2]
[398073236,1765357865359,-573.54,0.0001452,2]
[398073237,1765357865368,-500.0,0.0001452,2]
[398073238,1765357865378,-500.0,0.0001452,2]
[398073239,1765357865387,-500.0,0.0001452,2]
[398073240,1765357865396,-500.0,0.0001452,2]
[398073241,1765357865405,-500.0,0.0001452,2]
[398073242,1765357865414,-500.0,0.0001452,2]
[398073243,1765357865426,-500.0,0.0001452,2]
[398073244,1765357865436,-792.07,0.0001452,2]
[398073245,1765357865445,-583.08,0.0001452,2]
[398073246,1765357865455,-500.0,0.0001452,2]
[398073247,1765357865464,-500.0,0.0001452,2]
[398073248,1765357865473,-500.0,0.0001452,2]
[398073249,1765357865482,-500.0,0.0001452,2]
[398073250,1765357865491,-554.64,0.0001452,2]
[398073251,1765357865500,-500.0,0.0001452,2]
[398073252,1765357865511,-500.0,0.0001452,2]
[398073253,1765357865520,-1261.23,0.0001452,2]
[398073254,1765357865528,-500.0,0.0001452,2]
[398073255,1765357865538,-500.0,0.0001452,2]
[398073256,1765357865549,-508.91,0.0001452,2]
[398073257,1765357865559,-1138.44,0.0001452,2]
[398073258,1765357865568,-187.04573222,0.0001452,2]
[398073259,1765357865577,-591.7,0.0001452,2]
[398073260,1765357865586,-627.85,0.0001452,2]
[398073261,1765357865595,-512.73,0.0001452,2]
[398073262,1765357865603,-605.85,0.0001452,2]
[398073263,1765357865612,-537.09,0.0001452,2]
[398073264,1765357865622,-500.0,0.0001452,2]
[398073265,1765357865631,-500.0,0.0001452,2]
[398073266,1765357865640,-1000.05,0.0001452,2]
[398073267,1765357865650,-500.0,0.0001452,2]
[398073268,1765357865659,-1106.55,0.0001452,2]
[398073269,1765357865667,-558.83,0.0001452,2]
[398073270,1765357865677,-500.0,0.0001452,2]
[398073271,1765357865686,-500.0,0.0001452,2]
[398073272,1765357865696,-500.0,0.0001452,2]
[398073273,1765357865705,-538.70755433,0.0001452,2]
[398073274,1765357865714,-500.0,0.0001452,2]
[398073275,1765357865723,-500.0,0.0001452,2]
[398073276,1765357865732,-500.0,0.0001452,2]
[398073277,1765357865742,-713.37,0.0001452,2]
[398073278,1765357865751,-500.0,0.0001452,2]
[398073279,1765357865759,-551.54,0.0001452,2]
[398073280,1765357865768,-500.0,0.0001452,2]
[398073281,1765357865777,-500.0,0.0001452,2]
[398073282,1765357865786,-500.0,0.0001452,2]
[398073283,1765357865795,-500.0,0.0001452,2]
[398073284,1765357865804,-506.69466425,0.0001452,2]
[398073285,1765357865813,-500.0,0.0001452,2]
[398073286,1765357865822,-500.0,0.0001452,2]
[398073287,1765357865831,-500.0,0.0001452,2]
[398073288,1765357865840,-500.0,0.0001452,2]